Cogmind - Beta 15 @@@ ROGUE MODE // 2025.07.21 @ 04:22:04 Player: shapeshifter Result: Destroyed by G-47 Trooper with Particle Gun Performance ------------- Evolutions (2) 1000 Regions Visited (5) 1000 Robots Destroyed (49) 245 Value Destroyed (893) 893 Prototype IDs (4) 80 Alien Tech Used (0) 0 Bonus (33) 33 TOTAL SCORE: 3251 Bonus ------- Follower Combat Kills 33 Cogmind --------- Core Integrity 0/550 Matter 10/300 Energy 100/100 System Corruption 7% Temperature Cool (9) Movement Core (50) Location -8/Storage Parts ------- > --- POWER (1) -------- (None) > --- PROPULSION (3) --- (None) > --- UTILITY (3) ------ (None) > --- WEAPON (4) ------- (None) > --- INVENTORY (5) ---- Large Battery (200) Improved Terrain Scanner Targeting Computer Drone Bay (2/2) Improved EM Shotgun Peak State ------------ > --- POWER ------------ Nuclear Core > --- PROPULSION ------- Aluminum Leg Aluminum Leg Aluminum Leg > --- UTILITY ---------- Disposable Heat Sink Large Storage Unit Improved Terrain Scanner > --- WEAPON ----------- Beam Cannon Heavy Particle Cannon Improved Assault Rifle Enhanced Autogun > --- INVENTORY -------- Nuclear Core Nuclear Core Light Treads Aluminum Leg Aluminum Leg Cryofiber Web High-capacity Storage Unit Large Battery High-capacity Matter Pod Improved Terrain Scanner Improved Terrain Scanner Targeting Computer Drone Bay Improved EM Shotgun [Rating: 26] Favorites ----------- Power Ion Engine Engine Ion Engine Power Core Nuclear Core Propulsion Light Treads Treads Light Treads Leg Aluminum Leg Flight Unit Improved Flight Unit Utility Improved Terrain Scanner Device Improved Terrain Scanner Storage Large Storage Unit Weapon Light Assault Rifle Energy Gun EM Pulse Gun Energy Cannon Heavy Particle Cannon Ballistic Gun Light Assault Rifle Launcher Rocket Launcher Build | -11 -10 -10 -9 -8 -8 ------- Run | Yrd Mat Min Mat Mat Sto Slots Evolved 4 | . . . 2 2 . Power . | . . . . . . Propulsion 1 | . . . . 1 . Utility 1 | . . . . 1 . Weapon 2 | . . . 2 . . Parts Attached 34 | 7 5 1 8 6 7 Power 4 | 1 . . 1 . 2 Engine 1 | 1 . . . . . Core 3 | . . . 1 . 2 Reactor . | . . . . . . Propulsion 10 | 2 . . 2 4 2 Treads 4 | 2 . . 1 1 . Leg 5 | . . . . 3 2 Wheel . | . . . . . . Hover . | . . . . . . Flight 1 | . . . 1 . . Utility 5 | 2 2 . . 1 . Device 2 | 1 . . . 1 . Storage 3 | 1 2 . . . . Processor . | . . . . . . Hackware . | . . . . . . Protection . | . . . . . . Artifact . | . . . . . . Weapon 15 | 2 3 1 5 1 3 Energy Gun 5 | 1 1 . 1 1 1 Energy Cannon 2 | . . . 2 . . Ballistic Gun 6 | 1 2 . 1 . 2 Ballistic Cannon . | . . . . . . Launcher 2 | . . 1 1 . . Special Weapon . | . . . . . . Impact Weapon . | . . . . . . Slashing Weapon . | . . . . . . Piercing Weapon . | . . . . . . Special Melee Weapon . | . . . . . . Unidentified Prototypes 4 | . . . 2 . 2 Parts Lost 21 | . . . 1 4 16 Power 3 | . . . . . 3 Propulsion 9 | . . . 1 2 6 Utility 2 | . . . . . 2 Weapon 7 | . . . . 2 5 Highest Loss Streak 16 | . . . 1 4 16 To Critical Strikes . | . . . . . . Average Backups 8 | 4 7 7 10 13 12 Power 1 | . 1 1 1 2 1 Propulsion 1 | 2 1 . . 1 2 Utility 4 | . 2 4 6 7 7 Weapon 1 | . 1 2 2 2 1 Tool/Special . | . . . . . . Unused Backups 13 | . 3 . 1 1 8 Power 1 | . . . 1 . . Propulsion 2 | . 2 . . . . Utility 8 | . . . . . 8 Weapon 1 | . . . . 1 . Tool/Special 1 | . 1 . . . . Average Slot Usage (%) 96 | . 100 100 98 96 77 Engine 8 | . 14 14 3 . . Core 3 | . . . 7 9 8 Treads 21 | . 28 28 20 13 . Leg 3 | . . . . 11 20 Device 13 | . 14 14 11 17 13 Storage 11 | . 14 14 11 9 7 Energy Gun 12 | . 14 14 16 8 2 Energy Cannon 5 | . . . 9 12 12 Ballistic Gun 9 | . 14 5 7 9 10 Launcher 4 | . . 8 11 4 . Peak Build Rating 26 | 10 10 11 20 23 26 Average Rating 13 | 7 9 10 17 21 18 On Entrance 12 | . 10 10 11 19 22 Naked Turns 1 | . . . . . 1 Heaviest Build 44 | 14 29 32 43 44 44 Greatest Support 60 | 40 40 40 40 60 30 Greatest Overweight (x) 3 | . . . 1 2 3 Average Overweight (x) . | . . . . . 1 Largest Inventory Capacity 20 | 8 20 15 15 15 15 Average Capacity 11 | 7 8 15 15 15 13 Most Carried 15 | 6 9 9 14 15 15 Average Carried 9 | 4 7 7 10 14 12 Final Capacity 15 | 8 15 15 15 15 5 Final Carried 15 | 6 7 8 14 15 5 Class Distribution -------------------- 59% | Mutant 29% | Skirmisher 11% | Scavenger-Skirmisher Dominant Class ---------------- Mutant | -10/Materials Mutant | -10/Mines Skirmisher | -9/Materials Skirmisher | -8/Materials Scavenger-Skirmisher | -8/Storage Resources | -11 -10 -10 -9 -8 -8 ----------- Run | Yrd Mat Min Mat Mat Sto Matter Collected 736 | 194 283 . 123 85 51 Remotely . | . . . . . . Salvage Created 1302 | 105 362 . 312 401 122 Parts 123 | 20 28 . 50 19 6 Haulers Intercepted 2 | . . . 1 1 . Recyclers Shooed 4 | . 2 . . 2 . Parts Field Recycled . | . . . . . . Retrieved Matter . | . . . . . . Parts Self-Destructed . | . . . . . . Prevented . | . . . . . . Kills | -11 -10 -10 -9 -8 -8 ------- Run | Yrd Mat Min Mat Mat Sto Combat Hostiles Destroyed 24 | . 6 . 10 6 2 Guns 13 | . 6 . 4 1 2 Cannons 2 | . . . 1 1 . AOE 9 | . . . 5 4 . Classes Destroyed 13 | 1 5 . 5 1 1 Worker 5 | . 2 . 3 . . Builder 5 | . . . 3 1 1 Tunneler 7 | 5 1 . 1 . . Hauler 2 | . . . 1 1 . Recycler 2 | . 1 . . 1 . Mechanic 1 | . . . 1 . . Operator 1 | . . . 1 . . Watcher 2 | . 1 . 1 . . Swarmer 9 | . 1 . 8 . . Grunt 9 | . 5 . 1 3 . Duelist 1 | . . . . . 1 Sentry 3 | . . . 1 1 1 Hunter 2 | . . . . 2 . Best Kill Streak 12 | 2 3 . 12 4 2 Combat Bots Only 6 | . 2 . 6 4 2 Max Kills in Single Turn 6 | 1 1 . 6 1 1 Gunslinging . | . . . . . . Exploded 2 | . . . 2 1 . Melee . | . . . . . . Uniques/NPCs Destroyed . | . . . . . . Combat | -11 -10 -10 -9 -8 -8 -------- Run | Yrd Mat Min Mat Mat Sto Hostile Shots Fired 290 | . 51 . 34 15 190 Missed 85 | . 17 . 5 5 58 Hits 205 | . 34 . 29 10 132 Projectile 205 | . 34 . 29 10 132 AOE 1 | . . . . . 1 Critical Strikes 3 | . . . 1 . 2 Damage Taken 2969 | . 342 . 369 499 1759 Core 691 | . 87 . 44 4 556 Absorbed by Shields . | . . . . . . Core Remaining (%) 84 | 100 . 65 89 . . Volleys Fired 74 | 7 35 1 10 12 9 Largest 4 | 2 2 2 4 4 4 Hottest 198 | 60 60 70 163 198 183 Shots Fired 201 | 14 70 2 39 49 27 Gun 149 | 14 70 2 24 24 15 Cannon 31 | . . . 5 14 12 Launcher 21 | . . . 10 11 . Special . | . . . . . . Kinetic 78 | 7 35 1 9 12 14 Thermal 54 | . . 1 15 25 13 Explosive 21 | . . . 10 11 . Electromagnetic 48 | 7 35 . 5 1 . Robot Hit Streak 9 | 3 8 . 2 8 9 Robot Miss Streak 4 | 1 4 2 4 3 4 Penetration Max . | . . . . . . Secondary Targets . | . . . . . . Shots Hit Robots 108 | 7 38 . 15 31 17 Core Hits 73 | 6 18 . 25 17 7 Critical Kills . | . . . . . . Critical Parts Destroyed . | . . . . . . Critical Strikes 2 | . . . 1 1 . Burn 2 | . . . 1 1 . Melee Attacks . | . . . . . . Impact . | . . . . . . Slashing . | . . . . . . Piercing . | . . . . . . Sneak Attacks . | . . . . . . Combat Hostiles . | . . . . . . Follow-up Attacks . | . . . . . . Damage Inflicted 2700 | 90 475 . 888 961 286 Guns 1003 | 90 420 . 111 245 137 Cannons 425 | . . . 61 217 147 Explosions 1263 | . 48 . 716 499 . Melee . | . . . . . . Ramming 9 | . 7 . . . 2 Kinetic 441 | 6 143 . 29 126 137 Thermal 714 | . 48 . 203 316 147 Explosive 1123 | . . . 624 499 . Electromagnetic 413 | 84 277 . 32 20 . Impact . | . . . . . . Slashing . | . . . . . . Piercing . | . . . . . . Highest Corruption 7 | . 1 1 . 7 7 Average Corruption 3 | . 1 1 . 7 7 Corruption Purged . | . . . . . . Corruption Blocked . | . . . . . . Effects 25 | . 5 6 . 6 8 Message Errors 3 | . . 1 . . 2 Matter Fused 5 | . 1 2 . 2 . Heat Flow Errors 6 | . 2 2 . . 2 Energy Discharges 3 | . 1 . . 1 1 Data Loss (minor) 4 | . 1 1 . 1 1 Misfires 2 | . . . . 1 1 Alerts 1 | . . . . 1 . Weapon Failures 1 | . . . . . 1 Overload Shots . | . . . . . . Overflow Damage 15 | . . . 15 . . Projectiles . | . . . . . . Explosions 15 | . . . 15 . . Melee . | . . . . . . Knockbacks . | . . . . . . Impact . | . . . . . . Kinetic . | . . . . . . Secondary . | . . . . . . Self-Inflicted Damage 265 | . . . 129 136 . Shots 8 | . . . 4 4 . Rammed 1 | . 1 . . . . Targets Rammed 3 | . 2 . . . 1 Kicked 1 | . . . . . 1 Crushed 1 | . 1 . . . . Highest Temperature 332 | 40 332 156 211 199 229 Average Temperature 86 | 18 88 60 76 104 97 Received Heat Transfer 888 | . 144 . 15 63 666 Siege Activations . | . . . . . . Martial Activations . | . . . . . . Shielding Activations . | . . . . . . Robots Disrupted . | . . . . . . Combat Hostiles . | . . . . . . Robots Corrupted . | . . . . . . Combat Hostiles . | . . . . . . Parts Fried . | . . . . . . Impact Corruptions . | . . . . . . Robots Melted . | . . . . . . Combat Hostiles . | . . . . . . Parts Melted 1 | . . . 1 . . Heat Transferred 1482 | . 50 . 433 703 296 Parts Sabotaged . | . . . . . . Parts Stolen . | . . . . . . Parts Stripped . | . . . . . . Power Chain Reactions 2 | . 1 . 1 . . Alert | -11 -10 -10 -9 -8 -8 ------- Run | Yrd Mat Min Mat Mat Sto Maximum Alert Level 1 | . . . 1 1 . Low Security (%) 88 | 100 100 100 55 88 100 Level 1 11 | . . . 44 11 . Level 2 . | . . . . . . Level 3 . | . . . . . . Level 4 . | . . . . . . Level 5 . | . . . . . . High Security . | . . . . . . Max Security . | . . . . . . Peak Influence 277 | 10 81 22 277 222 67 Initial 64 | . . 22 . 64 55 Average 65 | 1 26 1 174 137 23 Influence Increases 1075 | 25 202 . 431 257 160 Destroy 0b10 Robot/C 500 | . 120 . 200 120 60 Destroy 0b10 Robot/NC 125 | 25 25 . 55 15 5 Destroy Leader 138 | . 32 . 44 42 20 Allied During Kill 5 | . . . . . 5 Successful Hack 34 | . 7 . 19 . 8 Disable Machine 15 | . . . 15 . . Destroy Structure 168 | . 3 . 83 80 2 Lose Combat Pursuer 90 | . 15 . 15 . 60 Influence Decreases 1075 | 25 143 59 278 279 291 Entered New Map 202 | . . 37 . 89 76 Time Decay 708 | 25 143 22 268 150 100 Lost Part 125 | . . . 10 40 75 Lost Ally 40 | . . . . . 40 Squads Dispatched 9 | . 2 . 2 2 3 Investigation 4 | . 2 . 1 1 . Extermination . | . . . . . . Reinforcement 2 | . . . 1 1 . Assault 2 | . . . . . 2 Garrison 1 | . . . . . 1 Intercept . | . . . . . . Searches Triggered . | . . . . . . Construction Impeded 1 | . . . . 1 . Haulers Reinforced . | . . . . . . Active Scanning Responses . | . . . . . . Cargo Convoy Interrupts . | . . . . . . Stealth | -11 -10 -10 -9 -8 -8 --------- Run | Yrd Mat Min Mat Mat Sto Distress Signals 4 | . 1 . 1 . 2 Communications Jammed . | . . . . . . Distress Signals . | . . . . . . Times Spotted 54 | . 10 . 15 9 20 Peak Tracking Total 12 | . 3 . 5 4 12 Tactical Retreats 4 | . 1 . 1 . 2 Traps | -11 -10 -10 -9 -8 -8 ------- Run | Yrd Mat Min Mat Mat Sto Traps Triggered 2 | . 1 . 1 . . Indirectly . | . . . . . . Trap Hack Attempts . | . . . . . . Triggered . | . . . . . . Disarmed . | . . . . . . Reprogrammed . | . . . . . . Reused . | . . . . . . Traps Extracted . | . . . . . . Installed 4 | . . 4 . . . Triggered . | . . . . . . Most Traps Carried 1 | . . 1 . . . Machines | -11 -10 -10 -9 -8 -8 ---------- Run | Yrd Mat Min Mat Mat Sto Machines Disabled 1 | . . . 1 . . Max in Single Turn 1 | . . . 1 . . Machines Repaired . | . . . . . . Machines Dismantled . | . . . . . . Machines Sabotaged . | . . . . . . Overloaded Fab Kills . | . . . . . . Hacking | -11 -10 -10 -9 -8 -8 --------- Run | Yrd Mat Min Mat Mat Sto Machines Accessed 10 | . 4 . 2 1 3 Terminals 8 | . 2 . 2 1 3 Fabricators . | . . . . . . Repair Stations . | . . . . . . Recycling Units 2 | . 2 . . . . Scanalyzers . | . . . . . . Garrison Access . | . . . . . . Total Hacks 26 | . 11 . 6 3 6 Successful 9 | . 3 . 3 1 2 Failed 17 | . 8 . 3 2 4 Catastrophic 2 | . 1 . 1 . . Database Lockouts . | . . . . . . Manual . | . . . . . . Terminals 20 | . 5 . 6 3 6 Fabricators . | . . . . . . Repair Stations . | . . . . . . Recycling Units 6 | . 6 . . . . Scanalyzers . | . . . . . . Garrison Access . | . . . . . . Terminal Hacks 8 | . 2 . 3 1 2 Open Door 1 | . . . . . 1 Branch Access Points 1 | . 1 . . . . Emergency Access Points 1 | . . . 1 . . Terminal Index 1 | . . . 1 . . Dispatch Records 1 | . 1 . . . . Recall Reinforcements 1 | . . . . . 1 Zone Layout 2 | . . . 1 1 . Fabricator Hacks . | . . . . . . Repair Station Hacks . | . . . . . . Recycling Unit Hacks 1 | . 1 . . . . Retrieve Components 1 | . 1 . . . . Scanalyzer . | . . . . . . Garrison Access Hacks . | . . . . . . Unauthorized Hacks . | . . . . . . Terminals . | . . . . . . Fabricators . | . . . . . . Repair Stations . | . . . . . . Recycling Units . | . . . . . . Scanalyzers . | . . . . . . Garrison Access . | . . . . . . Data Cores Recovered . | . . . . . . Used . | . . . . . . Hacking Detections 9 | . 3 . 2 1 3 Full Trace Events 4 | . 1 . 1 1 1 Feedback Events 1 | . 1 . . . . Corruption 1 | . 1 . . . . Feedback Blocked . | . . . . . . Robot Schematics Acquired . | . . . . . . Robots Built . | . . . . . . Authchips . | . . . . . . Time . | . . . . . . Total Robot Build Rating . | . . . . . . Part Schematics Acquired . | . . . . . . Parts Built . | . . . . . . Authchips . | . . . . . . Time . | . . . . . . Total Part Build Rating . | . . . . . . Parts Repaired . | . . . . . . Time . | . . . . . . Parts Recycled . | . . . . . . Recycled Matter . | . . . . . . Retrieved Matter . | . . . . . . Retrieved Components . | . . . . . . Parts Scanalyzed . | . . . . . . Part Schematics Acquired . | . . . . . . Parts Damaged . | . . . . . . Bothacking | -11 -10 -10 -9 -8 -8 ------------ Run | Yrd Mat Min Mat Mat Sto Used RIF Installer . | . . . . . . Robots Hacked . | . . . . . . Non-combat . | . . . . . . Combat . | . . . . . . Robot Hacks Applied . | . . . . . . Relay Couplers Released . | . . . . . . Fabnet Peak Effective % . | . . . . . . Robots Rewired . | . . . . . . Allies Hacked . | . . . . . . Hacks Repelled . | . . . . . . Allies | -11 -10 -10 -9 -8 -8 -------- Run | Yrd Mat Min Mat Mat Sto Total Allies 2 | . . . . . 2 Largest Group 2 | . . . . . 2 Highest-Rated Group 62 | . . . . . 62 Highest-Rated Ally 31 | . . . . . 31 Total Orders . | . . . . . . Ally Attacks 10 | . . . . . 10 Total Damage 146 | . . . . . 146 Kills 1 | . . . . . 1 Allies Corrupted . | . . . . . . Allies Melted . | . . . . . . Intel | -11 -10 -10 -9 -8 -8 ------- Run | Yrd Mat Min Mat Mat Sto Active Infowar (turns) 2628 | 180 927 378 606 318 219 Terrain 2628 | 180 927 378 606 318 219 Robot Analysis Total . | . . . . . . Derelict Logs Recovered 1 | . . 1 . . . Drone Launches . | . . . . . . Drone Recoveries . | . . . . . . Exploration | -11 -10 -10 -9 -8 -8 ------------- Run | Yrd Mat Min Mat Mat Sto Turns Passed 2768 | 258 927 378 606 318 281 Spaces Moved 1182 | 144 292 230 252 145 119 Core 18 | 10 . . . . 8 Treads 994 | 134 292 230 252 75 11 Legs 170 | . . . . 70 100 Wheels . | . . . . . . Hover . | . . . . . . Flight . | . . . . . . Fastest Speed 50 | 50 160 160 160 160 50 Average Speed 176 | 152 160 160 214 181 193 Slowest Speed 330 | 160 160 160 240 320 330 Overloaded Moves . | . . . . . . Propulsion Burnouts . | . . . . . . Robots Hopped . | . . . . . . Potential Cave-ins . | . . . . . . Cave-ins Triggered 1 | . . . . 1 . Exploration Rate (%) 28 | 7 53 44 26 13 30 Regions Visited 5 Branch Regions 2 Pre-discovered Areas 1 | . . 1 . . . Known Exits Taken 1 | . 1 . . . . Unknown Exits Taken 4 | 1 . 1 1 1 . Scrap Searched . | . . . . . . Spaces Dug . | . . . . . . Terrain Destroyed 200 | . 3 . 90 105 2 Melee . | . . . . . . Projectile 7 | . . . . 5 2 AOE 193 | . 3 . 90 100 . Terrain Rammed . | . . . . . . Walls Destroyed . | . . . . . . Machines Disabled . | . . . . . . Actions | -11 -10 -10 -9 -8 -8 --------- Run | Yrd Mat Min Mat Mat Sto Total 1715 | 170 691 238 293 170 153 Wait 352 | . 341 . 3 . 8 Move 1177 | 143 291 229 251 144 119 Hop . | . . . . . . Pick Up 45 | 13 7 2 14 6 3 Fast Attach 4 | . . . . 1 3 Attach 20 | 7 1 . 3 5 4 Detach . | . . . . . . Swap 16 | . 5 1 7 1 2 Drop 20 | . 9 1 5 1 4 Fire 74 | 7 35 1 10 12 9 Melee . | . . . . . . Ram . | . . . . . . Kick 1 | . . . . . 1 Crush 2 | . 2 . . . . Escape Stasis . | . . . . . . Rewire . | . . . . . . Trap 4 | . . 4 . . . Miscellaneous . | . . . . . . Route ------- -11/Scrapyard -10/Materials (discovered 2 exits: *Mat / *Min) -10/Mines -9/Materials -8/Materials -8/Storage History --------- Turn | Location | Event 5 | -11/Scrapyard | Discovered new exit (range 15) 259 | -11/Scrapyard | Entered Materials 317 | -10/Materials | Build established: Mutant 1024 | -10/Materials | Identified exit to Mines 1035 | -10/Materials | Discovered new exit (range 4) 1186 | -10/Materials | Entered Mines 1193 | -10/Mines | Learned Materials security intel 1215 | -10/Mines | Learned location of Storage (-8) 1315 | -10/Mines | Received a Rocket Launcher from a helpful Derelict 1371 | -10/Mines | Found a hidden stash of uninstalled traps 1404 | -10/Mines | Discovered new exit (range 10) 1564 | -10/Mines | Entered Materials 1564 | -9/Materials | Evolved 2 slots: Weapon x2 1872 | -9/Materials | Build established: Skirmisher 2093 | -9/Materials | Discovered new exit (range 15) 2170 | -9/Materials | Entered another Materials area 2170 | -8/Materials | Evolved 2 slots: Propulsion x1, Utility x1 2182 | -8/Materials | Discovered new exit (range 15) 2334 | -8/Materials | Crushed by falling debris 2365 | -8/Materials | Lost 4 parts (2n2w) 2488 | -8/Materials | Entered Storage 2541 | -8/Storage | Met a pair of Derelict thieves 2641 | -8/Storage | Build established: Scavenger-Skirmisher 2692 | -8/Storage | Garrison activated, responded to threat 2725 | -8/Storage | Core integrity fell below 50% 2754 | -8/Storage | Core integrity fell below 20% 2769 | -8/Storage | Destroyed by G-47 Trooper with Particle Gun Last Messages --------------- 02717_ Imp. Assault Rifle destroyed. 02719_ M-28 Smith repairs S-10 Pest Flight Unit. 02720_ Nuclear Core destroyed. 02720_ Enh. Autogun destroyed. 02722_ Connecting with Terminal... >>Recall(Reinforcements) Establishing remote squad link... No tasked reinforcement squads found. 02724_ Aluminum Leg destroyed. 02724_ Dropped Lrg. Storage Unit. 02725_ Acquired Lgt. Treads. 02729_ M-28 Smith repairs Y-45 Defender. 02730_ Acquired Nuclear Core. 02735_ Transfer Shaft disabled. 02735_ M-13 Machinist repairs G-47 Trooper. 02745_ Lgt. Treads destroyed. 02750_ IZIZMCI3J7ETW47 MJD9NLT 02750_ Acquired Pulse Rifle. 02766_ Pulse Rifle destroyed. 02769_ Nuclear Core destroyed. Map ----- +----------------------------------------------------+ | | | | | | | | | | | | | | | | | | | ???#?????????????????#?????????#??? | | ???#?????#########???????#####????? | | ?????????# ####??#?#"""#????? | | ?#???????# """"" ##T######"T"####?? | | ########## """"" / !! #?? | | / """"" # ! #?? | | ###### # ! #?? | | ## #######!] #?? | | " #???#]] #?? | | #??##] " #?? | | #?""" """ #?? | | # #?"G """ ##?? | | !#?""" #??? | | #?### #??? | | ### # #???# #??? | | ??# # """ %* #???# ####g###g##?? | | #?# # #???# ^# @sa b m#?? | | ??? ###### ###???# # "T" sg #?? | | ??# #?????##?????# # """ [g #?? | | ??? ?????? ??????^ Y ]! #?? | | ???##??#????????????#+#####" "###?? | | ??????????????????????????#"R"#???? | | ??????????????????????????#"""#???? | | ??????????????????????????#####???? | | ??????????????????????????????????? | | ??????????????????????????????????? | | ??????????????????????????????????? | | ???#??????????????????????????????? | | ??????????????????????????????????? | | ??????????????????????????????????? | | ??????????????????????????????????? | | ??????????????????????????????????? | | ??????????????????????????????????? | | ??????????????????????????????????? | | ??????????????????????????????????? | | ??????????????????????????????????? | | ??????????????????????????????????? | | ??????????????????????????????????? | | ??????????????????????????????????? | | ??????????????????????????????????? | | ??????????????????????????????????? | +----------------------------------------------------+ Best States ------------- Heat Dissipation 31 Coolant Potential 50 Energy Generation 14 Energy Capacity 250 Matter Stores 300 Matter Capacity 300 Sight Range 16 Terrain Scan Range 16 Terrain Scan Density 10 Evasion (%) 50 Recoil Reduction 3 Item Schematics ----------------- None Robot Schematics ------------------ None Fabricated ------------ Nothing Repaired ---------- Nothing Alien Tech Used ----------------- None Achievements -------------- None Challenges ------------ None Game ------ Seed DeliveryRelayTorch Manual? 0 Play Time 00:19:15 Cumulative 24.5 hours Start 2025.07.21 @ 04:05:49 End 2025.07.21 @ 04:22:04 Sessions 1 Manual Loads 0 Difficulty Rogue Special Mode None Game No. 67 Rogue 67 Adventurer 0 Explorer 0 Win Type - Total 0 Types 0/0/0/0/0/0/0/0/0/0 Lore% 22 Gallery% 27 Achievement% 20 Wizard Run 0 Options --------- Layout 1 ASCII 0 Keyboard 0 Movement Mouse Keybinds 0 Fullscreen 1 Font 32/SmallcapsGlow Map View 50x35 Zoom Use 0% Tactical HUD 1 Map Filters NONE Filters NONE Steam 1 RUN: dde91364-0612-4421-a82a-4c1487fbf248